Cogmind - Beta 16.1 @@@ ROGUE MODE // 2026.03.29 @ 16:07:40 Player: Thqwib-Linux Result: Escaped! Performance ------------- Evolutions (9) 4500 Regions Visited (17) 3400 Robots Destroyed (112) 560 Value Destroyed (2721) 2721 Prototype IDs (64) 1280 Alien Tech Used (2) 400 Bonus (7386) 7386 TOTAL SCORE: 20247 Bonus ------- Triggered Max Security 1000 High Alert Combat Kills 56 Follower Combat Kills 95 Hunted by Unchained 500 Aligned with FarCom 300 Scanned by Researcher 500 Met Sigix 2000 Win 3000 Friendly Fire -65 Cogmind --------- Core Integrity 947/1600 Matter 130/300 Energy 200/200 System Corruption 18% Temperature Cool (1) Movement Flying (45) Location To Epsilon Eridani Parts ------- > --- POWER (2) -------- Micro Fission Core Micro Antimatter Reactor > --- PROPULSION (6) --- Impulse Thruster Array > --- UTILITY (15) ----- Enhanced Optical Array Advanced Salvage Targeting Computer Advanced Launcher Guidance Computer Graphene Brace Hacking Suite Hacking Suite Hacking Suite Improved Hacking Suite Experimental System Shield > --- WEAPON (2) ------- Axe > --- INVENTORY (5) ---- Improved Terrain Scanner Enhanced Quantum Rifle Peak State ------------ > --- POWER ------------ Micro Fission Core Micro Antimatter Reactor > --- PROPULSION ------- Impulse Thruster Impulse Thruster Q-thruster Electron Diverter Impulse Thruster Array > --- UTILITY ---------- Advanced Power Amplifier Enhanced Optical Array Improved Terrain Scanner Experimental Terrain Scan Processor Advanced Salvage Targeting Computer Advanced Launcher Guidance Computer Advanced ECM Suite Advanced Reaction Control System Graphene Brace Hacking Suite Hacking Suite Hacking Suite Improved Hacking Suite Advanced Hacking Suite Experimental System Shield > --- WEAPON ----------- Micro-nuke Launcher Axe > --- INVENTORY -------- Micro Antimatter Reactor Field Propulsion Drive Advanced Reaction Control System Enhanced Quantum Rifle Tesla Bomb Launcher [Rating: 157] Favorites ----------- Power Light Nuclear Core Engine Light Ion Engine Power Core Light Nuclear Core Reactor Micro Antimatter Reactor Propulsion Xenon Bombardment Thruster Treads Advanced Treads Leg Aluminum Leg Flight Unit Xenon Bombardment Thruster Utility Hacking Suite Device Advanced ECM Suite Storage Large Storage Unit Processor Improved Targeting Computer Hackware Hacking Suite Protection Light Armor Plating Weapon Improved Light Cannon Energy Gun Small Laser Energy Cannon Beam Cannon Ballistic Gun Enhanced Autogun Ballistic Cannon Improved Light Cannon Launcher Tesla Bomb Launcher Special Weapon Field Lobotomy Kit Impact Weapon Hammer Slashing Weapon Axe Build | -11 -10 -10 -9 -9 -9 -8 -8 -7 -7 -7 -7 -5 -4 -3 -3 -2 -1 ------- Run | Yrd Mat Min Mat Min Exi Min Mat Fac Sto Rec Scr Fac Fac Res Qua Res Acc Slots Evolved 18 | . . . 2 . . . 2 2 . . . 4 2 2 . 2 2 Power 1 | . . . . . . . . . . . . . . 1 . . . Propulsion 4 | . . . 1 . . . 1 . . . . . 1 . . . 1 Utility 13 | . . . 1 . . . 1 2 . . . 4 1 1 . 2 1 Weapon . | . . . . . . . . . . . . . . . . . . Parts Attached 102 | 4 6 1 10 2 . . 8 15 6 1 1 11 6 12 3 9 7 Power 13 | . 1 1 2 . . . . 1 1 . . 2 . 3 . . 2 Engine 2 | . 1 1 . . . . . . . . . . . . . . . Core 7 | . . . 2 . . . . 1 1 . . 2 . 1 . . . Reactor 4 | . . . . . . . . . . . . . . 2 . . 2 Propulsion 25 | 2 . . 7 . . . 2 4 1 . . . 1 2 2 1 3 Treads 11 | 2 . . 7 . . . 2 . . . . . . . . . . Leg . | . . . . . . . . . . . . . . . . . . Wheel . | . . . . . . . . . . . . . . . . . . Hover . | . . . . . . . . . . . . . . . . . . Flight 14 | . . . . . . . . 4 1 . . . 1 2 2 1 3 Utility 43 | 1 3 . 1 . . . 3 7 1 1 1 6 5 6 . 6 2 Device 13 | 1 . . . . . . 1 3 . . . 1 . 4 . 2 1 Storage 1 | . 1 . . . . . . . . . . . . . . . . Processor 13 | . 2 . . . . . 1 2 . 1 . 3 1 1 . 2 . Hackware 11 | . . . . . . . . 2 . . 1 1 3 1 . 2 1 Protection 5 | . . . 1 . . . 1 . 1 . . 1 1 . . . . Artifact . | . . . . . . . . . . . . . . . . . . Weapon 21 | 1 2 . . 2 . . 3 3 3 . . 3 . 1 1 2 . Energy Gun 1 | 1 . . . . . . . . . . . . . . . . . Energy Cannon 1 | . . . . 1 . . . . . . . . . . . . . Ballistic Gun 5 | . . . . 1 . . . 2 1 . . 1 . . . . . Ballistic Cannon 3 | . 2 . . . . . 1 . . . . . . . . . . Launcher 7 | . . . . . . . 2 . 1 . . 1 . 1 . 2 . Special Weapon 1 | . . . . . . . . . . . . 1 . . . . . Impact Weapon 2 | . . . . . . . . 1 . . . . . . 1 . . Slashing Weapon 1 | . . . . . . . . . 1 . . . . . . . . Piercing Weapon . | . . . . . . . . . . . . . . . . . . Special Melee Weapon . | . . . . . . . . . . . . . . . . . . Unidentified Prototypes 13 | . . . . . . . 1 . 2 . . 3 2 1 3 1 . Corrupted Parts 1 | . . . . . . . . . . . 1 . . . . . . System Corruption 3 | . . . . . . . . . . . 3 . . . . . . Parts Lost 21 | . . . . 1 . . . . 2 . . . 1 2 . 1 14 Power 2 | . . . . . . . . . . . . . . 1 . . 1 Propulsion 5 | . . . . . . . . . . . . . . . . . 5 Utility 10 | . . . . . . . . . 2 . . . . 1 . 1 6 Weapon 4 | . . . . 1 . . . . . . . . 1 . . . 2 Highest Loss Streak 9 | . . . . 1 . . . . 2 . . . 1 1 . 1 9 To Critical Strikes . | . . . . . . . . . . . . . . . . . . Average Backups 8 | 4 7 10 12 13 14 15 14 5 4 4 5 4 4 4 5 4 4 Power . | 1 1 1 1 1 1 1 1 1 . . . . . . 1 1 . Propulsion 2 | 2 1 2 4 5 5 5 4 . . 1 1 . . 1 1 1 . Utility 1 | . 2 3 3 4 4 4 3 1 . . 1 . 1 . 1 1 . Weapon 2 | 1 2 4 3 2 3 3 3 1 2 2 2 2 1 1 1 1 1 Tool/Special . | . . . . . . . . . . . . . . . . . . Unused Backups 29 | 4 6 1 3 1 . . 8 2 . . . . . . 1 2 1 Power 5 | . 2 1 1 . . . 1 . . . . . . . . . . Propulsion 9 | 4 . . . . . . 5 . . . . . . . . . . Utility 4 | . 1 . 1 . . . 1 . . . . . . . . 1 . Weapon 9 | . 3 . 1 1 . . 1 1 . . . . . . . 1 1 Tool/Special 2 | . . . . . . . . 1 . . . . . . 1 . . Average Slot Usage (%) 96 | . 99 100 96 100 100 100 99 98 99 94 100 94 98 93 92 94 86 Engine 2 | . 14 14 1 . . . . . . . . . . . . . . Core 6 | . . . 9 11 11 11 9 7 7 7 7 5 5 7 4 4 4 Treads 15 | . 27 28 30 33 33 33 35 . . . . . . . . . . Flight 11 | . . . . . . . . 28 30 30 30 22 25 19 19 17 17 Device 8 | . 3 . 8 . . . 7 7 14 15 7 11 10 15 11 15 17 Storage 5 | . 14 14 11 11 11 11 9 . . . . . . . . . . Processor 12 | . 10 14 11 11 11 11 10 13 7 9 15 17 16 10 14 16 15 Hackware 9 | . . . . . . . . 13 14 7 15 13 23 23 23 24 21 Protection 4 | . . . 2 11 11 11 9 6 7 7 7 8 5 4 4 2 . Energy Gun 1 | . 11 . . . . . . . . . . . . . . . . Energy Cannon 1 | . . . . 4 11 11 5 . . . . . . . . . . Ballistic Gun 2 | . . . . 2 . . . 13 8 7 7 4 2 . . . . Ballistic Cannon 8 | . 16 28 21 14 11 11 12 . . . . . . . . . . Launcher 1 | . . . . . . . . . . . . . 2 2 4 3 3 Slashing Weapon 1 | . . . . . . . . . 1 7 7 4 4 4 3 4 3 Peak Build Rating 157 | 7 11 11 22 22 22 22 30 46 49 48 48 69 87 124 141 145 157 Average Rating 54 | 6 8 11 16 21 21 22 25 44 44 46 48 59 79 110 121 137 141 On Entrance 48 | 6 7 11 11 22 21 22 22 30 42 45 48 48 63 87 122 120 145 Avg Prop Armor Cover (%) 3 | . . . . . . . . . . . . 6 . 1 . . . Naked Turns . | . . . . . . . . . . . . . . . . . . Heaviest Build 38 | 11 31 33 36 36 35 35 38 36 22 20 17 24 23 37 37 38 38 Greatest Support 86 | 40 40 40 66 66 66 66 86 84 24 23 23 24 34 37 37 40 50 Greatest Overweight (x) 5 | . . . . . . . . . 5 . . 1 . 1 . . . Average Overweight (x) . | . . . . . . . . . . . . . . . . . . Largest Inventory Capacity 15 | 8 15 15 15 15 15 15 15 15 5 5 5 5 5 5 5 5 5 Average Capacity 9 | 8 12 15 15 15 15 15 15 5 5 5 5 5 5 5 5 5 5 Most Carried 15 | 7 10 12 15 15 15 15 15 15 5 5 5 5 5 5 5 5 5 Average Carried 8 | 4 7 10 12 13 14 15 14 5 4 4 5 4 4 4 4 4 4 Final Capacity 15 | 8 15 15 15 15 15 15 15 5 5 5 5 5 5 5 5 5 5 Final Carried 15 | 2 10 12 14 14 15 15 15 5 4 5 5 5 5 5 5 4 2 Class Distribution -------------------- 46% | Mutant 15% | Hacker-Ninja 11% | Hacker-Sprinter 6% | Wizard-Ninja 4% | Hacker-Scout 3% | Scavenger-Mutant 3% | Infiltrator-Ninja 3% | Wizard-Scout Dominant Class ---------------- Mutant | -10/Materials Mutant | -10/Mines Mutant | -9/Materials Mutant | -9/Mines Mutant | -9/Exiles Mutant | -8/Mines Mutant | -8/Materials Hacker-Sprinter | -7/Factory Hacker-Sprinter | -7/Storage Infiltrator-Sprinter | -7/Recycling Sprinter | -7/Scraptown Infiltrator-Ninja | -5/Factory Hacker-Ninja | -4/Factory Hacker-Ninja | -3/Research Hacker-Sprinter | -3/Quarantine Wizard-Scout | -2/Research Wizard-Ninja | -1/Access Resources | -11 -10 -10 -9 -9 -9 -8 -8 -7 -7 -7 -7 -5 -4 -3 -3 -2 -1 ----------- Run | Yrd Mat Min Mat Min Exi Min Mat Fac Sto Rec Scr Fac Fac Res Qua Res Acc Matter Collected 3194 | 237 132 82 440 62 . . 350 349 236 226 20 220 44 184 206 175 231 Remotely . | . . . . . . . . . . . . . . . . . . Salvage Created 3555 | 111 240 109 884 22 . . 627 370 146 . . 333 127 163 114 24 285 Parts 232 | 7 25 10 64 3 . . 43 26 8 . . 6 6 8 8 3 15 Haulers Intercepted 15 | . 1 . 2 . . . 3 1 3 . . 3 1 1 . . . Recyclers Shooed 5 | 1 . . 1 . . . 1 1 . . . 1 . . . . . Parts Field Recycled . | . . . . . . . . . . . . . . . . . . Retrieved Matter . | . . . . . . . . . . . . . . . . . . Parts Self-Destructed . | . . . . . . . . . . . . . . . . . . Prevented . | . . . . . . . . . . . . . . . . . . Parts Restored . | . . . . . . . . . . . . . . . . . . Kills | -11 -10 -10 -9 -9 -9 -8 -8 -7 -7 -7 -7 -5 -4 -3 -3 -2 -1 ------- Run | Yrd Mat Min Mat Min Exi Min Mat Fac Sto Rec Scr Fac Fac Res Qua Res Acc Combat Hostiles Destroyed 69 | . 10 5 27 2 . . 16 . . . . . . 1 . . 8 Melee 1 | . . . . . . . . . . . . . . 1 . . . Guns 6 | . 6 . . . . . . . . . . . . . . . . Cannons 54 | . 4 5 27 2 . . 16 . . . . . . . . . . AOE 8 | . . . . . . . . . . . . . . . . . 8 Classes Destroyed 16 | 2 4 . 5 . . . 1 1 . . . . . 1 1 . 1 Worker 5 | . . . 1 . . . . 1 . . . . . 1 . . 2 Builder 8 | . . . . . . . . 5 . . . . . . 1 . 2 Tunneler 6 | 2 . . . . . . 1 1 . . . . 1 1 . . . Hauler 15 | . 1 . 2 . . . 3 1 3 . . 3 1 1 . . . Recycler 4 | 1 . . . . . . . 2 . . . . . . . . 1 Mechanic 1 | . . . 1 . . . . . . . . . . . . . . Operator 6 | . 1 . . . . . . 1 . . . . 1 . 2 1 . Drone 7 | . . . . . . . . . . . . . . 1 . . 6 Watcher 4 | . . . 1 . . . . 1 . . . 1 . 1 . . . Swarmer 21 | . 6 3 7 2 . . 3 . . . . . . . . . . Grunt 27 | . 4 2 13 . . . 8 . . . . . . . . . . Duelist 1 | . . . 1 . . . . . . . . . . . . . . Researcher 1 | . . . . . . . . . . . . . . . 1 . . Sentry 9 | . . . 6 . . . 3 . . . . . . . . . . Specialist 2 | . . . . . . . 2 . . . . . . . . . . Programmer 2 | . . . . . . . . . . . . . . . . . 2 Best Kill Streak 7 | 2 3 3 7 2 . . 5 5 2 . . 1 1 1 3 . 6 Combat Bots Only 5 | . 3 3 5 2 . . 5 . . . . . . 1 . . 4 Max Kills in Single Turn 2 | 1 2 1 2 1 . . 1 1 1 . . 1 1 1 1 1 2 Gunslinging 1 | . 1 . . . . . . . . . . . . . . . . Exploded 2 | . . . . . . . . . . . . . . . . . 2 Melee 1 | . . . . . . . . . . . . . . 1 . . . Uniques/NPCs Destroyed . | . . . . . . . . . . . . . . . . . . Combat | -11 -10 -10 -9 -9 -9 -8 -8 -7 -7 -7 -7 -5 -4 -3 -3 -2 -1 -------- Run | Yrd Mat Min Mat Min Exi Min Mat Fac Sto Rec Scr Fac Fac Res Qua Res Acc Hostile Shots Fired 516 | . 60 12 54 8 . . 76 2 120 . . 6 . 44 16 7 111 Missed 225 | . 14 1 11 1 . . 27 2 67 . . 3 . 28 9 5 57 Hits 291 | . 46 11 43 7 . . 49 . 53 . . 3 . 16 7 2 54 Melee 3 | . . . 2 . . . . . . . . . . . 1 . . Projectile 288 | . 46 11 41 7 . . 49 . 53 . . 3 . 16 6 2 54 AOE 1 | . . . . . . . . . . . . . . . . . 1 Critical Strikes 6 | . 2 . 1 . . . 2 . . . . . . . . . 1 Actively Blocked 1 | . . . . . . . . . . . . . . . . . 1 Part Disruptions 1 | . . . . . . . . . . . . . . . . . 1 Damage Taken 4855 | . 422 97 522 58 . . 786 . 377 . . 31 78 339 213 45 1887 Core 1097 | . 97 29 46 . . . 51 . 56 . . . 41 33 69 22 653 Absorbed by Shields 64 | . . . . . . . . . 64 . . . . . . . . Redirected to Shielding 98 | . . . . . . . . . 13 . . . . 56 29 . . Regen/Repaired (Parts) 472 | . 89 . 127 . . . . 52 24 . . 86 72 22 . . . Core Remaining (%) 86 | 100 . 49 . . . 88 90 . . . 92 100 96 . 92 98 59 Volleys Fired 235 | 8 36 6 45 3 . . 53 31 15 2 . 2 . 16 3 . 15 Largest 2 | 2 2 2 2 2 . . 2 2 2 1 . 1 . 1 1 . 1 Hottest 93 | 80 80 66 66 66 . . 93 66 50 39 . 39 . 52 52 . 49 Shots Fired 425 | 16 72 12 90 5 . . 105 60 27 2 . 2 . 16 3 . 15 Gun 147 | 16 50 . . . . . . 56 25 . . . . . . . . Cannon 235 | . 22 12 90 5 . . 104 2 . . . . . . . . . Launcher 39 | . . . . . . . 1 2 2 2 . 1 . 13 3 . 15 Special 4 | . . . . . . . . . . . . 1 . 3 . . . Kinetic 288 | . 22 12 90 5 . . 76 58 25 . . . . . . . . Thermal 94 | 16 50 . . . . . 28 . . . . . . . . . . Explosive 28 | . . . . . . . 1 2 2 2 . 1 . 7 3 . 10 Electromagnetic 11 | . . . . . . . . . . . . . . 6 . . 5 Robot Hit Streak 23 | 5 8 12 21 5 . . 23 7 10 . . 1 . 4 . . 2 Robot Miss Streak 5 | 3 5 2 2 2 . . 2 3 4 . . . . . . . 2 Penetration Max . | . . . . . . . . . . . . . . . . . . Secondary Targets 1 | . 1 . . . . . . . . . . . . . . . . Max Gunslinging Chain 1 | . 1 . . . . . . . . . . . . . . . . Shots Hit Robots 293 | 10 42 8 62 2 . . 76 31 17 . . 12 9 7 7 2 8 Core Hits 150 | 4 17 7 34 3 . . 35 12 5 . . 8 1 7 2 . 15 Critical Kills . | . . . . . . . . . . . . . . . . . . Critical Parts Destroyed . | . . . . . . . . . . . . . . . . . . Critical Strikes 7 | . . . 4 . . . 1 1 . . . . 1 . . . . Blast 6 | . . . 4 . . . 1 1 . . . . . . . . . Sever 1 | . . . . . . . . . . . . . 1 . . . . Melee Attacks 202 | . . . . . . . . 1 19 . . 21 24 39 28 26 44 Impact 18 | . . . . . . . . 1 17 . . . . . . . . Slashing 184 | . . . . . . . . . 2 . . 21 24 39 28 26 44 Piercing . | . . . . . . . . . . . . . . . . . . Sneak Attacks 18 | . . . . . . . . . 2 . . 4 2 3 3 2 2 Combat Hostiles 1 | . . . . . . . . . . . . . . 1 . . . Follow-up Attacks . | . . . . . . . . . . . . . . . . . . Damage Inflicted 8961 | 110 600 193 1491 45 . . 1603 545 540 . . 579 402 531 538 168 1616 Guns 1183 | 110 298 . . . . . . 522 253 . . . . . . . . Cannons 3545 | . 300 184 1441 38 . . 1559 23 . . . . . . . . . Explosions 1688 | . . . . . . . . . 68 . . 2 . 253 . . 1365 Melee 2433 | . . . . . . . . . 219 . . 577 402 278 538 168 251 Ramming 112 | . 2 9 50 7 . . 44 . . . . . . . . . . Kinetic 3979 | . 300 184 1441 38 . . 1218 545 253 . . . . . . . . Thermal 917 | 110 298 . . . . . 341 . . . . . . . . . 168 Explosive 926 | . . . . . . . . . 68 . . 2 . . . . 856 Electromagnetic 594 | . . . . . . . . . . . . . . 253 . . 341 Impact 126 | . . . . . . . . . 126 . . . . . . . . Slashing 2307 | . . . . . . . . . 93 . . 577 402 278 538 168 251 Piercing . | . . . . . . . . . . . . . . . . . . Highest Corruption 18 | . . . . . . . . . 1 1 4 . . . . . 18 Average Corruption 5 | . . . . . . . . . 1 1 4 . . . . . 11 Corruption Purged . | . . . . . . . . . . . . . . . . . . Corruption Blocked . | . . . . . . . . . . . . . . . . . . Effects 10 | . . . . . . . . . 2 . . . . . . . 8 Message Errors 1 | . . . . . . . . . . . . . . . . . 1 Matter Fused 2 | . . . . . . . . . . . . . . . . . 2 Data Loss (minor) 3 | . . . . . . . . . 1 . . . . . . . 2 Alerts 1 | . . . . . . . . . . . . . . . . . 1 Misdirections 2 | . . . . . . . . . . . . . . . . . 2 Weapon Failures 1 | . . . . . . . . . 1 . . . . . . . . Overload Shots . | . . . . . . . . . . . . . . . . . . Overflow Damage 815 | . . . 14 . . . . . 64 . . 66 85 58 154 118 256 Projectiles 14 | . . . 14 . . . . . . . . . . . . . . Explosions 251 | . . . . . . . . . . . . . . 11 . . 240 Melee 550 | . . . . . . . . . 64 . . 66 85 47 154 118 16 Knockbacks 33 | . 4 1 10 . . . 18 . . . . . . . . . . Impact 1 | . . . . . . . 1 . . . . . . . . . . Kinetic 29 | . 3 1 9 . . . 16 . . . . . . . . . . Secondary 3 | . 1 . 1 . . . 1 . . . . . . . . . . Self-Inflicted Damage 215 | . . . . . . . . . 12 . . . . 25 63 . 115 Shots 6 | . . . . . . . . . 1 . . . . 1 1 . 3 Rammed 24 | . 2 3 9 2 . . 8 . . . . . . . . . . Targets Rammed 25 | . 2 3 10 2 . . 8 . . . . . . . . . . Kicked . | . . . . . . . . . . . . . . . . . . Crushed 1 | . . . 1 . . . . . . . . . . . . . . Highest Temperature 120 | 90 120 24 36 12 . . 30 118 94 . . 3 . 24 6 . 21 Average Temperature 26 | 40 31 9 12 8 . . 8 38 36 . . 3 . 7 6 . 8 Received Heat Transfer 820 | . 87 12 150 . . . 342 . 91 . . . . 75 9 . 54 Siege Activations . | . . . . . . . . . . . . . . . . . . Martial Activations . | . . . . . . . . . . . . . . . . . . Shielding Activations . | . . . . . . . . . . . . . . . . . . Robots Disrupted . | . . . . . . . . . . . . . . . . . . Combat Hostiles . | . . . . . . . . . . . . . . . . . . Robots Corrupted 1 | . . . . . . . . . 1 . . . . . . . . Combat Hostiles . | . . . . . . . . . . . . . . . . . . Parts Fried 1 | . . . . . . . . . . . . . . 1 . . . Impact Corruptions 1 | . . . . . . . . . 1 . . . . . . . . Robots Melted . | . . . . . . . . . . . . . . . . . . Combat Hostiles . | . . . . . . . . . . . . . . . . . . Parts Melted . | . . . . . . . . . . . . . . . . . . Heat Transferred 1728 | 250 675 . . . . . 703 . . . . . . . . . 100 Parts Sabotaged . | . . . . . . . . . . . . . . . . . . Parts Stolen . | . . . . . . . . . . . . . . . . . . Parts Stripped . | . . . . . . . . . . . . . . . . . . Power Chain Reactions 1 | . . . . . . . . . . . . . . . . . 1 Alert | -11 -10 -10 -9 -9 -9 -8 -8 -7 -7 -7 -7 -5 -4 -3 -3 -2 -1 ------- Run | Yrd Mat Min Mat Min Exi Min Mat Fac Sto Rec Scr Fac Fac Res Qua Res Acc Maximum Alert Level 5 | . . . 2 . . . 1 . . . . . . 1 5 4 2 Low Security (%) 85 | 100 100 100 77 100 . 100 96 100 100 100 . 100 100 99 . . 48 Level 1 3 | . . . 13 . . . 3 . . . . . . . . . 20 Level 2 3 | . . . 9 . . . . . . . . . . . . . 30 Level 3 4 | . . . . . . . . . . . . . . . . 95 . Level 4 . | . . . . . . . . . . . . . . . . 4 . Level 5 . | . . . . . . . . . . . . . . . . . . High Security . | . . . . . . . . . . . . . . . . . . Max Security 3 | . . . . . . . . . . . . . . . 99 . . Peak Influence 1873 | 10 75 62 423 147 . . 203 81 124 39 . 47 40 203 1873 1100 691 Initial 1100 | . . 12 . 147 . . . 67 2 39 . . 12 . 105 1100 501 Average 172 | 1 21 18 161 34 . . 128 17 28 26 . 10 7 80 1729 930 306 Influence Increases 4452 | 15 314 120 813 55 . . 499 136 236 28 . 185 138 635 273 114 891 Destroy 0b10 Robot/C 1400 | . 200 100 540 40 . . 320 . 20 . . . . 20 20 . 140 Destroy 0b10 Robot/NC 255 | 15 10 . 25 . . . 20 60 20 . . 20 15 25 15 . 30 Destroy Leader 290 | . 42 20 126 . . . 56 4 18 . . 8 2 4 . . 10 Allied During Kill 10 | . . . . . . . . . 4 . . . . 6 . . . Successful Hack 353 | . 14 . 21 . . . . 42 2 12 . 87 82 18 . . 75 Disable Machine 345 | . 30 . . . . . 45 . 45 . . 15 15 30 90 15 60 Destroy Structure 899 | . 3 . 11 . . . 13 15 37 16 . 40 24 202 88 69 381 Partial Spotted 30 | . . . . . . . . . 15 . . . . . . 15 . Lose Combat Pursuer 870 | . 15 . 90 15 . . 45 15 75 . . 15 . 330 60 15 195 Influence Decreases 5336 | 15 283 151 434 434 . . 350 278 142 122 7 158 165 446 84 1198 1069 Entered New Map 1661 | . . 19 . 232 . . . 82 5 62 7 . 15 . 84 820 335 Time Decay 2784 | 15 230 132 434 192 . . 350 196 77 60 . 108 118 380 . 198 294 Lost Part 200 | . . . . 10 . . . . 20 . . . . 20 . 10 140 Lost Ally 158 | . . . . . . . . . 40 . . 50 2 46 . 20 . Purge Threat 533 | . 53 . . . . . . . . . . . 30 . . 150 300 Squads Dispatched 53 | . 1 . 3 . . . 3 4 3 . . 6 1 8 13 4 7 Investigation 4 | . 1 . 1 . . . . . . . . 1 . 1 . . . Extermination 12 | . . . . . . . . 2 . . . 2 1 3 . 2 2 Reinforcement 19 | . . . 2 . . . 2 1 1 . . 3 . 4 1 1 4 Assault 16 | . . . . . . . . . 2 . . . . . 12 1 1 Garrison 2 | . . . . . . . 1 1 . . . . . . . . . Intercept . | . . . . . . . . . . . . . . . . . . Searches Triggered . | . . . . . . . . . . . . . . . . . . Unchained Authorized 2 | . . . . . . . . . . . . . . . . 1 1 Construction Impeded 3 | . . . . . . . . . . . . . . 1 . . 2 Haulers Reinforced 2 | . . . . . . . . . 1 . . . . . . . 1 Active Scanning Responses . | . . . . . . . . . . . . . . . . . . Cargo Convoy Interrupts . | . . . . . . . . . . . . . . . . . . Stealth | -11 -10 -10 -9 -9 -9 -8 -8 -7 -7 -7 -7 -5 -4 -3 -3 -2 -1 --------- Run | Yrd Mat Min Mat Min Exi Min Mat Fac Sto Rec Scr Fac Fac Res Qua Res Acc Distress Signals 17 | . 1 . 3 . . . 5 2 . . . . . 1 . 3 2 Communications Jammed . | . . . . . . . . . . . . . . . . . . Distress Signals . | . . . . . . . . . . . . . . . . . . Times Spotted 244 | . 20 4 38 3 . . 28 7 27 . . 11 3 27 19 16 41 Peak Tracking Total 18 | . 3 3 6 3 . . 7 4 18 . . 5 1 9 9 11 14 Tactical Retreats 32 | . 1 . 5 1 . . 3 1 2 . . 1 . 5 1 5 7 ECM-based Alert Blocks 20 | . . . . . . . . . . . . 4 . . . 12 4 Traps | -11 -10 -10 -9 -9 -9 -8 -8 -7 -7 -7 -7 -5 -4 -3 -3 -2 -1 ------- Run | Yrd Mat Min Mat Min Exi Min Mat Fac Sto Rec Scr Fac Fac Res Qua Res Acc Traps Triggered 10 | . 1 . 2 . . . . . 3 . . 2 1 . 1 . . Indirectly . | . . . . . . . . . . . . . . . . . . Trap Hack Attempts . | . . . . . . . . . . . . . . . . . . Triggered . | . . . . . . . . . . . . . . . . . . Disarmed . | . . . . . . . . . . . . . . . . . . Reprogrammed . | . . . . . . . . . . . . . . . . . . Reused . | . . . . . . . . . . . . . . . . . . Traps Extracted . | . . . . . . . . . . . . . . . . . . Installed . | . . . . . . . . . . . . . . . . . . Triggered . | . . . . . . . . . . . . . . . . . . Machines | -11 -10 -10 -9 -9 -9 -8 -8 -7 -7 -7 -7 -5 -4 -3 -3 -2 -1 ---------- Run | Yrd Mat Min Mat Min Exi Min Mat Fac Sto Rec Scr Fac Fac Res Qua Res Acc Machines Disabled 23 | . 2 . . . . . 3 . 3 . . 1 1 2 6 1 4 Max in Single Turn 2 | . 1 . . . . . 1 . 1 . . 1 1 1 2 1 1 Garrison Access 8 | . . . . . . . 1 2 1 . . . 2 . . 1 1 Machines Repaired . | . . . . . . . . . . . . . . . . . . Machines Dismantled . | . . . . . . . . . . . . . . . . . . Machines Sabotaged . | . . . . . . . . . . . . . . . . . . Overloaded Fab Kills . | . . . . . . . . . . . . . . . . . . Hacking | -11 -10 -10 -9 -9 -9 -8 -8 -7 -7 -7 -7 -5 -4 -3 -3 -2 -1 --------- Run | Yrd Mat Min Mat Min Exi Min Mat Fac Sto Rec Scr Fac Fac Res Qua Res Acc Machines Accessed 86 | . 5 . 8 . 1 . 3 12 6 5 . 10 13 7 . 8 8 Terminals 54 | . 4 . 6 . . . 2 6 4 4 . 6 7 4 . 7 4 Fabricators 4 | . . . . . . . . . . . . 2 . 1 . . 1 Repair Stations 9 | . 1 . 1 . . . . 1 1 . . 2 2 1 . . . Recycling Units 2 | . . . . . . . . 1 . 1 . . . . . . . Scanalyzers 5 | . . . 1 . . . . . . . . . 2 . . . 2 Garrison Access 11 | . . . . . . . 1 4 1 . . . 2 1 . 1 1 Total Hacks 241 | . 18 . 25 . 1 . 9 29 17 9 . 33 39 22 . 18 21 Successful 127 | . 9 . 15 . 1 . 2 12 5 3 . 17 23 13 . 12 15 Failed 114 | . 9 . 10 . . . 7 17 12 6 . 16 16 9 . 6 6 Catastrophic 14 | . . . . . . . 2 3 3 1 . 2 1 1 . 1 . Database Lockouts . | . . . . . . . . . . . . . . . . . . Manual 61 | . 11 . 12 . 1 . 6 9 2 2 . 4 8 1 . 5 . Terminals 157 | . 16 . 19 . . . 7 16 8 8 . 20 18 13 . 17 15 Fabricators 5 | . . . . . . . . . . . . 2 . 2 . . 1 Repair Stations 35 | . 2 . 3 . . . . 3 2 . . 11 8 6 . . . Recycling Units 4 | . . . . . . . . 3 . 1 . . . . . . . Scanalyzers 17 | . . . 3 . . . . . . . . . 10 . . . 4 Garrison Access 22 | . . . . . . . 2 7 7 . . . 3 1 . 1 1 Terminal Hacks 56 | . 5 . 6 . 1 . 1 3 1 1 . 5 6 8 . 8 11 Record 9 | . . . . . . . . . 1 . . . 2 3 . 2 1 Part Schematic 2 | . . . . . . . . . . . . . . 2 . . . Robot Analysis 5 | . 3 . 1 . . . . . . . . . . . . . 1 Prototype ID Bank 10 | . 1 . 2 . . . 1 1 . . . 1 1 1 . 1 1 Open Door 1 | . . . . . . . . . . . . . . . . . 1 Open DSF 1 | . . . . . . . . . . . . . . . . 1 . Level Access Points 1 | . . . . . . . . . . . . 1 . . . . . Branch Access Points 3 | . . . . . . . . . . . . . 1 1 . 1 . Machine Index 1 | . . . . . . . . . . . . . . . . . 1 Terminal Index 3 | . . . . . . . . . . . . 1 . 1 . 1 . Garrison Index 1 | . . . . . . . . . . . . . . . . . 1 Alert Level 2 | . . . 1 . . . . . . . . 1 . . . . . Unreport Threat 5 | . 1 . . . . . . . . . . . 1 . . 1 2 Locate Traps 1 | . . . . . . . . . . . . . . . . . 1 Dispatch Records 1 | . . . . . . . . . . . . . . . . . 1 Maintenance Status 2 | . . . . . . . . 1 . . . 1 . . . . . Hauler Manifests 1 | . . . 1 . . . . . . . . . . . . . . Registered Components 2 | . . . 1 . . . . . . . . . . . . . 1 Registered Prototypes 1 | . . . . . . . . . . . . . . . . 1 . Zone Layout 3 | . . . . . . . . 1 . 1 . . 1 . . . . Proto ID Catalog 1 | . . . . . 1 . . . . . . . . . . . . Fabricator Hacks 5 | . . . . . . . . . . . . 2 . 2 . . 1 Network Status 2 | . . . . . . . . . . . . 1 . . . . 1 Load Schematic 1 | . . . . . . . . . . . . . . 1 . . . Build 2 | . . . . . . . . . . . . 1 . 1 . . . Repair Station Hacks 23 | . 2 . 2 . . . . 2 2 . . 8 4 3 . . . Scan Component 12 | . 1 . 1 . . . . 1 1 . . 4 2 2 . . . Repair 11 | . 1 . 1 . . . . 1 1 . . 4 2 1 . . . Recycling Unit Hacks 4 | . . . . . . . . 3 . 1 . . . . . . . Process 1 | . . . . . . . . 1 . . . . . . . . . Report Inventory 2 | . . . . . . . . 1 . 1 . . . . . . . Retrieve Matter 1 | . . . . . . . . 1 . . . . . . . . . Scanalyzer 15 | . . . 3 . . . . . . . . . 10 . . . 2 Insert Component 4 | . . . 1 . . . . . . . . . 3 . . . . Analyze 4 | . . . 1 . . . . . . . . . 3 . . . . Retrieve Study 7 | . . . 1 . . . . . . . . . 4 . . . 2 Garrison Access Hacks 8 | . . . . . . . 1 2 1 . . . 2 . . 1 1 Seal Access 8 | . . . . . . . 1 2 1 . . . 2 . . 1 1 Unauthorized Hacks 16 | . 2 . 4 . . . . 2 1 1 . 2 1 . . 3 . Terminals 16 | . 2 . 4 . . . . 2 1 1 . 2 1 . . 3 . Assimilate 6 | . . . . . . . . 1 . . . 1 1 . . 3 . Botnet 10 | . 2 . 4 . . . . 1 1 1 . 1 . . . . . Fabricators . | . . . . . . . . . . . . . . . . . . Repair Stations . | . . . . . . . . . . . . . . . . . . Recycling Units . | . . . . . . . . . . . . . . . . . . Scanalyzers . | . . . . . . . . . . . . . . . . . . Garrison Access . | . . . . . . . . . . . . . . . . . . Data Cores Recovered 2 | . 1 . . . . . . 1 . . . . . . . . . Used 1 | . . . . . . . . 1 . . . . . . . . . Hacking Detections 74 | . 5 . 8 . . . 2 10 6 3 . 9 12 6 . 6 7 Full Trace Events 3 | . . . 1 . . . . . . . . 1 . 1 . . . Feedback Events . | . . . . . . . . . . . . . . . . . . Feedback Blocked . | . . . . . . . . . . . . . . . . . . Robot Schematics Acquired 2 | . . . . . . . . . . . . . . . 2 . . Robots Built 2 | . . . . . . . . . . . . 2 . . . . . Authchips . | . . . . . . . . . . . . . . . . . . Time 56 | . . . . . . . . . . . . 56 . . . . . Total Robot Build Rating 12 | . . . . . . . . . . . . 12 . . . . . Part Schematics Acquired 8 | . . . 1 . . . . . . . . . 3 2 2 . . Parts Built 2 | . . . . . . . . . . . . . . 2 . . . Authchips 1 | . . . . . . . . . . . . . . 1 . . . Time 39 | . . . . . . . . . . . . . . 39 . . . Total Part Build Rating 14 | . . . . . . . . . . . . . . 14 . . . Part Studies Acquired 7 | . . . 1 . . . . . . . . . 4 . . . 2 Parts Repaired 11 | . 1 . 1 . . . . 1 1 . . 4 2 1 . . . Time 353 | . 26 . 32 . . . . 13 38 . . 148 53 43 . . . Parts Recycled . | . . . . . . . . . . . . . . . . . . Recycled Matter 43 | . . . . . . . . 43 . . . . . . . . . Retrieved Matter 43 | . . . . . . . . 43 . . . . . . . . . Retrieved Components . | . . . . . . . . . . . . . . . . . . Parts Scanalyzed 4 | . . . 1 . . . . . . . . . 3 . . . . Part Schematics Acquired 4 | . . . 1 . . . . . . . . . 3 . . . . Parts Damaged . | . . . . . . . . . . . . . . . . . . Bothacking | -11 -10 -10 -9 -9 -9 -8 -8 -7 -7 -7 -7 -5 -4 -3 -3 -2 -1 ------------ Run | Yrd Mat Min Mat Min Exi Min Mat Fac Sto Rec Scr Fac Fac Res Qua Res Acc Used RIF Installer . | . . . . . . . . . . . . . . . . . . Robots Hacked . | . . . . . . . . . . . . . . . . . . Non-combat . | . . . . . . . . . . . . . . . . . . Combat . | . . . . . . . . . . . . . . . . . . Robot Hacks Applied . | . . . . . . . . . . . . . . . . . . Relay Couplers Released . | . . . . . . . . . . . . . . . . . . Fabnet Peak Effective % . | . . . . . . . . . . . . . . . . . . Robots Rewired . | . . . . . . . . . . . . . . . . . . Allies Hacked 2 | . . . . . . . . . . . . 1 . 1 . . . Hacks Repelled . | . . . . . . . . . . . . . . . . . . Allies | -11 -10 -10 -9 -9 -9 -8 -8 -7 -7 -7 -7 -5 -4 -3 -3 -2 -1 -------- Run | Yrd Mat Min Mat Min Exi Min Mat Fac Sto Rec Scr Fac Fac Res Qua Res Acc Total Allies 15 | . . . . 1 . . . 1 2 . . 4 1 3 . 3 . Largest Group 3 | . . . . 1 1 . . 1 2 . . 2 1 3 . 1 . Highest-Rated Group 194 | . . . . 31 31 . . 26 62 . . 98 10 194 . 45 . Highest-Rated Ally 82 | . . . . 31 31 . . 26 31 . . 49 10 82 . 45 . Total Orders 1 | . . . . . . . . . . . . . . 1 . . . STAY 1 | . . . . . . . . . . . . . . 1 . . . Ally Attacks 23 | . . . . . . . . . 13 . . 4 . 6 . . . Total Damage 646 | . . . . . . . . . 189 . . 43 . 414 . . . Kills 3 | . . . . . . . . . 2 . . . . 1 . . . Allies Corrupted 1 | . . . . . . . . . . . . . 1 . . . . Allies Melted . | . . . . . . . . . . . . . . . . . . Field Lobotomies 4 | . . . . . . . . . . . . 1 . 3 . . . Intel | -11 -10 -10 -9 -9 -9 -8 -8 -7 -7 -7 -7 -5 -4 -3 -3 -2 -1 ------- Run | Yrd Mat Min Mat Min Exi Min Mat Fac Sto Rec Scr Fac Fac Res Qua Res Acc Active Infowar (turns) 5290 | 19 200 . 906 . . . 58 128 258 125 211 524 505 1024 269 407 656 Optics 3369 | . . . . . . . . . . . . 508 505 1024 269 407 656 Terrain 1994 | . . . . . . . . . . . . . . 928 149 407 510 Structural 1830 | . . . . . . . . 112 258 125 211 524 505 95 . . . Seismic 1183 | 19 200 . 906 . . . 58 . . . . . . . . . . T.N.C. 240 | . . . . . . . . . . . . 135 105 . . . . Machine Analysis 1384 | . . . . . . . . . . 41 211 524 505 103 . . . ECM 284 | . . . . . . . . 16 4 . . 5 3 22 . 111 123 Robot Analysis Total 5 | . 3 . 1 . . . . . . . . . . . . . 1 Derelict Logs Recovered 2 | . . 1 . 1 . . . . . . . . . . . . . Drone Launches . | . . . . . . . . . . . . . . . . . . Drone Recoveries . | . . . . . . . . . . . . . . . . . . Exploration | -11 -10 -10 -9 -9 -9 -8 -8 -7 -7 -7 -7 -5 -4 -3 -3 -2 -1 ------------- Run | Yrd Mat Min Mat Min Exi Min Mat Fac Sto Rec Scr Fac Fac Res Qua Res Acc Turns Passed 9331 | 95 919 455 1163 786 299 51 898 664 280 125 211 524 505 1024 269 407 656 Spaces Moved 11239 | 45 460 267 500 531 206 36 428 1315 396 399 711 826 1128 1301 524 899 1267 Core . | . . . . . . . . . . . . . . . . . . Treads 2456 | 22 460 267 500 531 206 36 428 6 . . . . . . . . . Legs 23 | 23 . . . . . . . . . . . . . . . . . Wheels . | . . . . . . . . . . . . . . . . . . Hover . | . . . . . . . . . . . . . . . . . . Flight 8760 | . . . . . . . . 1309 396 399 711 826 1128 1301 524 899 1267 Fastest Speed 27 | 120 160 160 145 145 145 145 148 31 29 29 29 29 27 27 29 29 28 Average Speed 56 | 139 160 160 155 145 145 145 152 31 29 29 29 30 27 30 29 29 29 Slowest Speed 160 | 160 160 160 160 145 145 145 155 155 31 29 29 117 29 115 31 31 45 Overloaded Moves . | . . . . . . . . . . . . . . . . . . Propulsion Burnouts . | . . . . . . . . . . . . . . . . . . Robots Hopped 40 | . . . . . . . . 10 3 . . 7 1 6 3 8 2 Potential Cave-ins 6 | . . . . . . . . . 1 . . . . 2 . . 3 Cave-ins Triggered 2 | . . . . . . . . . . . . . . . . . 2 Exploration Rate (%) 44 | 3 71 58 46 91 61 12 38 31 63 66 53 27 37 35 51 30 31 Regions Visited 17 Branch Regions 8 Pre-discovered Areas . | . . . . . . . . . . . . . . . . . . Known Exits Taken 5 | . . . . . . . 1 . 1 . . 1 . 1 . 1 . Unknown Exits Taken 12 | 1 1 1 1 1 1 1 . 1 . 1 1 . 1 . 1 . . Scrap Searched 7 | . . 3 . 2 . . . . . . 2 . . . . . . Spaces Dug 362 | . . . . . . . 9 13 8 18 . 20 12 89 60 23 110 Terrain Destroyed 550 | . . . 6 . . . 9 13 38 33 . 20 12 144 79 23 173 Melee 131 | . . . . . . . . 1 8 . . 6 12 34 13 23 34 Projectile 6 | . . . 6 . . . . . . . . . . . . . . AOE 413 | . . . . . . . 9 12 30 33 . 14 . 110 66 . 139 Terrain Rammed . | . . . . . . . . . . . . . . . . . . Walls Destroyed . | . . . . . . . . . . . . . . . . . . Machines Disabled . | . . . . . . . . . . . . . . . . . . Actions | -11 -10 -10 -9 -9 -9 -8 -8 -7 -7 -7 -7 -5 -4 -3 -3 -2 -1 --------- Run | Yrd Mat Min Mat Min Exi Min Mat Fac Sto Rec Scr Fac Fac Res Qua Res Acc Total 13362 | 63 569 282 790 541 206 35 573 1514 499 404 714 1045 1286 1826 581 985 1449 Wait 1373 | . 51 1 208 1 . . 45 142 40 . . 169 108 442 11 49 106 Move 11143 | 44 459 266 499 530 205 35 427 1295 389 398 710 812 1125 1288 518 882 1261 Hop 37 | . . . . . . . . 9 3 . . 6 1 6 2 8 2 Pick Up 64 | 1 10 3 5 2 1 . 12 2 . 1 1 5 6 7 2 4 2 Fast Attach 44 | 1 1 . 3 . . . 2 3 . 1 . 10 6 4 6 5 2 Attach 34 | 1 . . 1 1 . . 2 6 1 . . 4 3 5 . 2 8 Detach 14 | 1 . . . . . . . 1 . . . 2 4 2 . . 4 Swap 90 | 2 6 1 9 1 . . 9 12 14 2 2 11 3 10 3 3 2 Drop 81 | 5 4 2 10 1 . . 15 12 1 . 1 3 6 7 6 6 2 Fire 235 | 8 36 6 45 3 . . 53 31 15 2 . 2 . 16 3 . 15 Melee 202 | . . . . . . . . 1 19 . . 21 24 39 28 26 44 Ram . | . . . . . . . . . . . . . . . . . . Kick . | . . . . . . . . . . . . . . . . . . Crush 25 | . 2 3 10 2 . . 8 . . . . . . . . . . Escape Stasis 20 | . . . . . . . . . 17 . . . . . 2 . 1 Rewire . | . . . . . . . . . . . . . . . . . . Trap . | . . . . . . . . . . . . . . . . . . Miscellaneous . | . . . . . . . . . . . . . . . . . . Route ------- -11/Scrapyard -10/Materials (discovered 3 exits: *Mat x2 / [*Min]) -10/Mines -9/Materials (discovered 2 exits: [*Min x2]) -9/Mines (discovered 3 exits: *Mat x2 / *Exi) -9/Exiles -8/Mines -8/Materials (discovered 2 exits: *Fac x2) -7/Factory (discovered 2 exits: *Sto / *Low) -7/Storage -7/Recycling (discovered 2 exits: *Fac / [*Scr]) -7/Scraptown -5/Factory (discovered 4 exits: *Fac x4) -4/Factory (discovered 3 exits: *Res / Upp x2) -3/Research (discovered 4 exits: *Res / *Arm / *Qua x2) -3/Quarantine -2/Research (discovered 3 exits: *Acc / *Tes x2) -1/Access To Epsilon Eridani History --------- Turn | Location | Event 17 | -11/Scrapyard | Discovered new exit (range 3) 96 | -11/Scrapyard | Entered Materials 271 | -10/Materials | Discovered new exit (range 15) 317 | -10/Materials | Build established: Mutant 629 | -10/Materials | Repaired Lgt. Treads 754 | -10/Materials | Discovered new exit (range 6) 937 | -10/Materials | Discovered new exit (range 9) 1015 | -10/Materials | Entered Mines 1115 | -10/Mines | Found a Scrap Suit stashed away for nefarious purposes 1232 | -10/Mines | Core integrity fell below 50% 1461 | -10/Mines | Discovered new exit (range 6) 1470 | -10/Mines | Entered Materials 1470 | -9/Materials | Evolved 2 slots: Propulsion x1, Utility x1 1824 | -9/Materials | Discovered new exit (range 3) 2236 | -9/Materials | Build established: Scavenger-Mutant 2531 | -9/Materials | Discovered new exit (range 16) 2562 | -9/Materials | Build established: Mutant 2614 | -9/Materials | Repaired Imp. Light Cannon+ 2633 | -9/Materials | Entered Mines 2648 | -9/Mines | Discovered new exit (range 5) 2658 | -9/Mines | Met a Derelict bent on vengeance 2706 | -9/Mines | Received a Rocket Launcher from a helpful Derelict 2971 | -9/Mines | Learned location of 1 exit from Materials 3077 | -9/Mines | Discovered new exit (range 9) 3162 | -9/Mines | Received a Mining Laser from a helpful Derelict 3357 | -9/Mines | Found a hidden stash of uninstalled traps 3412 | -9/Mines | Deemed a non-threat by the Exiles lab entrance 3413 | -9/Mines | Discovered new exit (range 5) 3419 | -9/Mines | Entered Exiles 3419 | -9/Exiles | Accompanied by 1 ally 3453 | -9/Exiles | Met 8R-AWN 3476 | -9/Exiles | Met EX-HEX 3518 | -9/Exiles | Met EX-BIN 3537 | -9/Exiles | Aligned with FarCom system 3538 | -9/Exiles | Given EX-Vault access code 3572 | -9/Exiles | Opened EX-Vault 3583 | -9/Exiles | Found Field Lobotomy Kit 3610 | -9/Exiles | Warned to stay clear of 0b10 Research branches 3652 | -9/Exiles | Met EX-DEC 3703 | -9/Exiles | Discovered new exit (range 12) 3718 | -9/Exiles | Left Exiles lab with Field Lobotomy Kit 3718 | -9/Exiles | Entered Mines 3755 | -8/Mines | Discovered new exit (range 9) 3769 | -8/Mines | Entered Materials 3769 | -8/Materials | Evolved 2 slots: Propulsion x1, Utility x1 3770 | -8/Materials | Identified exit to Factory 3842 | -8/Materials | Garrison activated, responded to threat 4637 | -8/Materials | Discovered exit to Factory (range 16) 4667 | -8/Materials | Entered Factory 4667 | -7/Factory | Evolved 2 slots: Utility x2 4738 | -7/Factory | Repaired Lgt. Armor Plating 4903 | -7/Factory | Discovered new exit (range 8) 4914 | -7/Factory | Identified exit to Lower Caves 4941 | -7/Factory | Build established: Hacker-Sprinter 5282 | -7/Factory | Garrison activated, responded to threat 5299 | -7/Factory | Discovered new exit (range 14) 5331 | -7/Factory | Entered Storage 5332 | -7/Storage | Identified exit to Recycling 5371 | -7/Storage | Repaired Lgt. Nuclear Core 5557 | -7/Storage | Met a pair of Derelict thieves 5610 | -7/Storage | Used back door to open Recycling access 5611 | -7/Storage | Entered Recycling 5698 | -7/Recycling | Discovered new exit (range 14) 5729 | -7/Recycling | Scanned before Scraplab entrance 5733 | -7/Recycling | Discovered new exit (range 11) 5734 | -7/Recycling | Entered Scraplab 5736 | -7/Recycling | Entered Scraptown 5738 | -7/Scraptown | System corruption cleaned by C-Scrubber 5793 | -7/Scraptown | Heard Great Nut preacher, LISTEN AND RECITE! 5793 | -7/Scraptown | Visited Cave Peace 5799 | -7/Scraptown | Visited SPCMW 5803 | -7/Scraptown | Visited Cyclists 5822 | -7/Scraptown | Visited Fellowship of the Rings 5827 | -7/Scraptown | Visited Shadow of the Wyrm 5833 | -7/Scraptown | Visited The Evicted 5844 | -7/Scraptown | Visited TADAMA 5898 | -7/Scraptown | Discovered new exit (range 13) 5929 | -7/Scraptown | Turned away by UFD registrar 5947 | -7/Scraptown | Entered Factory 5947 | -5/Factory | Evolved 4 slots: Utility x4 6067 | -5/Factory | Repaired Axe 6112 | -5/Factory | Repaired Xenon Bombardment Thruster 6158 | -5/Factory | Repaired Xenon Bombardment Thruster 6247 | -5/Factory | Repaired Xenon Bombardment Thruster 6287 | -5/Factory | Found Prototype Launcher 6287 | -5/Factory | Identified Tesla Bomb Launcher 6365 | -5/Factory | Fabricated Y-64 Sentinel? 6401 | -5/Factory | Identified exit to Factory 6461 | -5/Factory | Assimilated C-35 Carver with FLK Orb 6471 | -5/Factory | Entered another Factory area 6471 | -4/Factory | Evolved 2 slots: Propulsion x1, Utility x1 6556 | -4/Factory | Repaired Enh. Nuclear Core 6557 | -4/Factory | Build established: Hacker-Ninja 6567 | -4/Factory | Identified exit to Upper Caves 6616 | -4/Factory | Found Prototype Processor 6616 | -4/Factory | Identified Exp. Terrain Scan Processor 6722 | -4/Factory | Found Prototype Hackware 6722 | -4/Factory | Identified Exp. System Shield 6775 | -4/Factory | Spotted B-86 Titan 6844 | -4/Factory | Repaired Imp. VTOL Module 6861 | -4/Factory | Discovered new exit (range 5) 6867 | -4/Factory | Watched by a mysterious "MATRIX" hacker. 6976 | -4/Factory | Entered Research 6976 | -3/Research | Evolved 2 slots: Power x1, Utility x1 7182 | -3/Research | Fabricated Impulse Thruster (x2) 7257 | -3/Research | Discovered new exit (range 21) 7336 | -3/Research | Repaired Broken Adv. Reaction Control System? 7566 | -3/Research | Assimilated H-77 Assassin with FLK Orb 7570 | -3/Research | Assimilated H-77 Assassin with FLK Orb 7594 | -3/Research | Assimilated P-80 Master with FLK Orb 7646 | -3/Research | Lost 3 allies 7775 | -3/Research | Identified exit to Armory 7775 | -3/Research | Identified exit to Quarantine 7878 | -3/Research | Found Fusion Bomb Launcher 7998 | -3/Research | Build established: Hacker-Scout 8000 | -3/Research | Entered Quarantine 8001 | -3/Quarantine | Maximum security lockdown engaged 8041 | -3/Quarantine | Scanned by Researcher 8075 | -3/Quarantine | Met incapacitated Sigix Warrior 8075 | -3/Quarantine | Lockdown squad dispatched 8127 | -3/Quarantine | Found Alien Impact Weapon 8127 | -3/Quarantine | Identified Core Stripper 8149 | -3/Quarantine | Found Alien Artifact 8149 | -3/Quarantine | Identified Subatomic Replicator 8165 | -3/Quarantine | Cryocooling Duct disabled 8180 | -3/Quarantine | Ambient heat levels rising (+20) 8267 | -3/Quarantine | Discovered new exit (range 9) 8269 | -3/Quarantine | Entered Research 8269 | -2/Research | Evolved 2 slots: Utility x2 8277 | -2/Research | Identified exit to Testing 8470 | -2/Research | Found Prototype Launcher 8470 | -2/Research | Identified Tactical Quantum Warhead 8514 | -2/Research | Unchained authorized (GL-D0S) 8519 | -2/Research | First assault squad dispatched 8554 | -2/Research | Exiles provided nearest exit location to -1/Access 8676 | -2/Research | Entered Access 8676 | -1/Access | Evolved 2 slots: Propulsion x1, Utility x1 8730 | -1/Access | Unchained authorized (GL-D0S) 8849 | -1/Access | Build established: Wizard-Ninja 9176 | -1/Access | First assault squad dispatched 9185 | -1/Access | Crushed by falling debris 9186 | -1/Access | System corruption reached 10% 9220 | -1/Access | Lost 9 parts (1p4n3u1w) 9297 | -1/Access | Lost 3 parts (2u1w) 9309 | -1/Access | Crushed by falling debris 9329 | -1/Access | Discovered new exit (range 6) 9332 | *** | Escaped! Last Messages --------------- 09309_ The unstable cave ceiling collapses. 09309_ Crushed by falling debris. 09309_ Adv. Hacking Suite destroyed. 09309_ System corrupted by crushing effect (+3). 09311_ Penetrated by Slug. 09311_ Electron Diverter destroyed. 09311_ Slug penetrates Wall. 09312_ Slug penetrates TF Node. 09312_ TF Node disabled. 09312_ Adv. Sensor Array tumbles out of TF Node. 09312_ Adv. Signal Interpreter tumbles out of TF Node. 09312_ Slug penetrates Wall. 09317_ System corrupted: Component data lost. 09326_ K-01 Serf cleans the Terminal. 09328_ Connecting with Terminal... >>Open(Door) Sealed Barrier opened. 09329_ K-01 Serf cleans the Terminal. 09329_ The Access Shell folds into the floor. 09329_ EXIT=FOUND Map ----- +----------------------------------------------------+ | ?????????????????????????????#??#?#???####??###### | | ???????????????????????????????????############### | | ??????????????????????????????#?##?# ###### | | ???????????????????????????????????# ###?## | | ????????????????????????????#??????# ###### | | ?????????????????????????????#?#??## + | | ???????????????????????????#???#?#?# # | | ????????????????????????????????##?# # ### | | ??????????????????????????????????## / ### | | ????????????????????????????????#### !! # ### | | ??????????????????????????????#?##?# !! # ### | | ??????????????????????????????#?#?########### ### | | ??????????????????????????????######## | | ?????????????????????????????##?###### | | ???????????????????????????????##?#### ###+#+#### | | ?????????????????????????????#######?# ## # | | ?????????????????????????????#??#?#### ## # | | ??????????????????????????#?##??##??## ## # | | ??????????????????????????####?####### ## # | | ?????????????????????????????#####??## ## # | | ????????????????????########## ####### ## # | | ????????????????????" ## # | | ??????????????BB????" u ## # | | ??????????????BB????" ## # | | ????????????????????" ## # | | ????????????????????" "@ ## # | | ????????????????????" "" ## # | | ????????????????????" ## # | | ??????????????BB????" u ## # | | ??????????????BB????" """ """ ## # | | ????????????????????" """T""" ## # | | ???????????????????########### #######k ## # | | ????????????????????#???##?#?####?#### ########## | | ????????????????????????#?##?#?####### ########## | | ???????????????????????? ?####?####### #?######## | | ??????????????????????? ###?###?#### ########## | | ??????????????????????? # ??##### ########## | | ??????????????????????? #? ###### ########## | | ?????????????????????????+? ?#?#### ########## | | ??????????????????????????# ###### ########## | | ??????????????????????? ? #? #?### | | ????????????????????????? # ? ??#### "" | | ??????????????????????????? ??##### T" | | ???????????????????????? ?# ?##### ##### | | ??????????????????????????#? ?#####/####### | | ???????????????????????? ?# # # | | ??????????????????????????+?? ? ? # | | ???????????????????????????? ? ? ?? # | | ???????????????????????????#?##?? " ?# | | ???????????????????????????#????#???""""? #### | +----------------------------------------------------+ Best States ------------- Heat Dissipation 53 Energy Generation 38 Energy Capacity 300 Matter Stores 300 Matter Capacity 300 Sight Range 22 Terrain Scan Range 16 Terrain Scan Density 1010 ECM Strength 2 Power Amplification 30 Armor Coverage 150 Propulsion Shielding 66 Evasion (%) 76 Targeting Accuracy 8 Launcher Accuracy 40 Core Analysis 6 Recoil Reduction 4 Salvage Targeting 3 Offensive Hacking 56 Defensive Hacking 16 Authchip Count 1 Item Schematics ----------------- Grenade Launcher | -9/Materials | Scanalyzed Impulse Thruster | -4/Factory | Scanalyzed Hvy. Rocket Launcher | -4/Factory | Scanalyzed Adv. Reaction Control System | -4/Factory | Scanalyzed Gui. Micro-nuke Launcher | -3/Research | Hacked Q-thruster | -3/Research | Hacked Adv. Myomer Leg | -3/Quarantine | Archive Exp. Myomer Leg | -3/Quarantine | Archive Robot Schematics ------------------ G-67 Veteran | -3/Quarantine | Archive A-15 Conveyor | -3/Quarantine | Archive Fabricated ------------ Y-64 Sentinel | x2 | -5/Factory | Preloaded Impulse Thruster | x2 | -3/Research | Authchip Repaired ---------- Lgt. Treads | 36% | -10/Materials Imp. Light Cannon | 5% | -9/Materials Lgt. Armor Plating | 42% | -7/Factory Lgt. Nuclear Core | 52% | -7/Storage Axe | 52% | -5/Factory Xenon Bombardment Thruster | 20% | -5/Factory Xenon Bombardment Thruster | 26% | -5/Factory Xenon Bombardment Thruster | 46% | -5/Factory Enh. Nuclear Core | 49% | -4/Factory Imp. VTOL Module | 78% | -4/Factory Adv. Reaction Control System | 56% | -3/Research | Broken Studied --------- Imp. Light Cannon | -9/Materials | Hacked Impulse Thruster | -4/Factory | Hacked Xenon Bombardment Thruster | -4/Factory | Hacked Mic. Fission Core | -4/Factory | Hacked Hvy. Rocket Launcher | -4/Factory | Hacked Impulse Thruster Array | -1/Access | Hacked Mic. Antimatter Reactor | -1/Access | Hacked Alien Tech Used ----------------- Core Stripper Subatomic Replicator Achievements -------------- False Reunion Infodabbler Tailor-made Challenges ------------ None Game ------ Seed VortexSeismicSabre Manual? 0 Play Time 02:39:13 Cumulative 75.9 hours Start 2026.03.29 @ 13:13:33 End 2026.03.29 @ 16:07:40 Sessions 1 Manual Loads 0 Difficulty Rogue Special Mode None Game No. 70 Rogue 70 Adventurer 0 Explorer 0 Win Type 0 Total 3 Types 2/0/1/0/0/0/0/0/0/0 Lore% 51 Gallery% 40 Achievement% 38 Wizard Run 0 Options --------- Layout 0 ASCII 0 Keyboard 1 Movement Arrows Keybinds 0 Fullscreen 2 Font 18/X11Bold Map View 76x50 Zoom Use 0% Tactical HUD 1 Map Filters NONE Filters NONE Steam 1 RUN: 24e9f747-1934-4285-8618-31064fbd4f8f